[Event "15th Paleochora Open 2022"]
[Site "Paleochora"]
[Date "2022.07.17"]
[Round "1.1"]
[White "Alexakis, Dimitrios"]
[Black "Yilmaz, Mustafa"]
[Result "0-1"]
[ECO "B90"]
[WhiteElo "2070"]
[BlackElo "2634"]
[Annotator "TA"]
[PlyCount "58"]
[EventDate "2022.07.17"]
[EventType "swiss"]
[EventCountry "GRE"]
[SourceTitle "playchess.com"]
[Source "ChessBase"]
[SourceQuality "1"]
[TimeControl "40/5400+30:900+30"]

{[%evp 11,58,-14,2,1,-8,0,1,-1,-1,-1,-8,-85,-49,-98,-97,-131,-69,-185,-168,-151,-151,-296,-295,-326,-323,-317,-249,-326,-340,-335,-340,-360,-341,-336,-326,-518,-522,-583,-572,-558,-586,-585,-571,-547,-585,-571,-564,-860,-614]} 1. e4 {[%emt 0:00:03]} c5 {[%emt 0:00:04]} 2. Nf3 {[%emt 0:00:13]} d6 {[%emt 0:00:03]} 3. d4 {[%emt 0:00:17]} cxd4 {[%emt 0:00:07]} 4. Nxd4 {[%emt 0:00:08]} Nf6 {[%emt 0:00:07]} 5. Nc3 {[%emt 0:00:09]} a6 {[%emt 0:00:03]} 6. Rg1 {[%emt 0:00:58]} b5 {[%emt 0:03:26]} 7. g4 {[%emt 0:02:19] B90: Sicilian Najdorf: Unusual White 6th moves, 6 Be3 Ng4 and 6 Be3 e5.} Bb7 {[%emt 0:00:36]} 8. Bg2 {[%emt 0:04:45]} g6 $5 {[%emt 0:23:03][%mdl 4] An interesting side line.} 9. e5 {[%emt 0:14:51] The position is equal.} Bxg2 {[%emt 0:02:36]} 10. exf6 {[%emt 0:00:25]} Bb7 {[%emt 0:00:23] [#]} 11. Qe2 $146 {[%emt 0:02:33]} (11. Bg5 $11) ({Predecessor:} 11. Bg5 b4 12. fxe7 Bxe7 13. Bxe7 Qxe7+ 14. Nce2 O-O 15. Qd2 a5 16. O-O-O Nd7 17. Ng3 {½-½ (47) Shubin,K (2441)-Kobalia,M (2590) Sochi 2020}) 11... e5 {[%emt 0:05:02]} 12. g5 {[%emt 0:03:44]} (12. a3 $1 $15) 12... b4 $17 {[%emt 0:04:30]} 13. Ne4 {[%emt 0:08:58][%cal Oc2c4] [#]} Nd7 {[%emt 0:01:52]} ({Black should try} 13... d5 $1 $17 {[%cal Rd5e4]} 14. Nd2 Bd6) 14. Bd2 {[%emt 0:14:49]} d5 $36 {[%emt 0:03:00][%mdl 2048] Black has strong initiative.} 15. Ng3 {[%emt 0:03:57]} Qb6 {[%emt 0:04:01]} 16. Nb3 {[%emt 0:03:48]} (16. Nf3 $17 {was called for.} e4 17. Bf4) 16... a5 $19 {[%emt 0:04:27][%cal Ba6a5,Ba5a4][%mdl 32]} 17. Be3 {[%emt 0:06:47]} Qc6 {[%emt 0:00:59]} 18. O-O-O {[%emt 0:03:56]} a4 {[%emt 0:01:03]} 19. Nd4 {[%emt 0:09:22]} exd4 {[%emt 0:00:50]} 20. Bxd4+ {[%emt 0:04:27] [#]} Kd8 $1 {[%emt 0:01:40]} ({Inferior is} 20... Qe6 21. Qxe6+ fxe6 22. f7+ Kxf7 23. Bxh8 $15) 21. Rge1 {[%emt 0:00:42]} Bd6 {[%emt 0:03:50]} 22. Kb1 {[%emt 0:01:55]} Kc7 {[%emt 0:01:26][%cal Oh8e8]} 23. c4 {[%emt 0:03:29]} (23. h3 $142) 23... dxc4 {[%emt 0:02:08] Black is clearly winning.} 24. Be3 {[%emt 0:02:01]} Rhe8 {[%emt 0:01:13]} 25. Rxd6 {[%emt 0:03:50]} Qxd6 {[%emt 0:08:32]} 26. Qxc4+ {[%emt 0:01:17]} Bc6 {[%emt 0:00:14][%cal Ob4b3]} 27. Rc1 {[%emt 0:01:15] [#]} Rxe3 $1 {[%emt 0:02:28]} 28. fxe3 {[%emt 0:00:22]} Ne5 {[%emt 0:00:07]} 29. Qh4 {[%emt 0:03:06]} a3 {[%emt 0:01:03] Weighted Error Value: White=0.56/Black=0.05 (flawless)} 0-1

[Event "15th Paleochora Open 2022"]
[Site "Paleochora"]
[Date "2022.07.17"]
[Round "1.2"]
[White "Bernadskiy, Vitaliy"]
[Black "Gennari, Jacopo"]
[Result "1-0"]
[ECO "C02"]
[WhiteElo "2610"]
[BlackElo "2065"]
[Annotator "TA"]
[PlyCount "65"]
[EventDate "2022.07.17"]
[EventType "swiss"]
[EventCountry "GRE"]
[SourceTitle "playchess.com"]
[Source "ChessBase"]
[SourceQuality "1"]
[TimeControl "40/5400+30:900+30"]

{[%evp 12,65,0,0,79,91,114,104,118,102,177,171,175,167,185,171,168,174,225,229,216,206,222,219,241,221,250,242,305,305,326,262,330,329,341,314,298,308,310,273,274,256,249,85,292,287,353,341,402,405,919,919,881,870,891,811]} 1. e4 {[%emt 0:00:03]} e6 {[%emt 0:00:10]} 2. d4 {[%emt 0:00:05]} d5 {[%emt 0:00:06]} 3. e5 {[%emt 0:00:04]} c5 {[%emt 0:00:16]} 4. c3 {[%emt 0:00:03]} Nc6 {[%emt 0:00:28]} 5. Nf3 {[%emt 0:00:04]} Qb6 {[%emt 0:00:12]} 6. Be2 {[%emt 0:00:19]} cxd4 {[%emt 0:01:03]} 7. cxd4 {[%emt 0:00:09]} f6 {[%emt 0:02:43] C02: French: Advance Variation.} (7... Nge7 $11 {keeps the balance.}) 8. Nc3 {[%emt 0:02:41][%cal Bb1c3,Bc3a4,Ba4c5][%mdl 32]} Bb4 {[%emt 0:07:19]} 9. O-O {[%emt 0:00:56]} Bd7 {[%emt 0:04:14] White is better.} 10. Be3 {[%emt 0:01:40] [#]} Nge7 $146 {[%emt 0:08:36] [#]} (10... Qd8 $16 {might work better.}) ({Predecessor:} 10... Bxc3 11. bxc3 Qc7 12. c4 fxe5 13. cxd5 exd5 14. dxe5 Nge7 15. Bc5 O-O 16. Rc1 Qa5 {½-½ (25) Nickel,R (2065)-Mager,T (1754) Eschborn 2017}) 11. Na4 $1 $18 {[%emt 0:02:29]} Qd8 {[%emt 0:03:07] [#]} 12. a3 $1 $36 {[%emt 0:00:06][%mdl 2048] Keeping Black busy.} Ba5 {[%emt 0:00:03]} 13. exf6 {[%emt 0:00:39]} gxf6 {[%emt 0:00:32]} 14. Nc5 {[%emt 0:00:07]} Bb6 {[%emt 0:04:37]} (14... Qc7 $142 15. Bd3 Bb6) 15. Nxb7 {[%emt 0:00:41]} Qc7 {[%emt 0:01:22]} 16. Nc5 {[%emt 0:00:05]} Bxc5 {[%emt 0:00:04]} 17. dxc5 {[%emt 0:00:08]} e5 {[%emt 0:01:13]} 18. Nh4 {[%emt 0:00:23]} d4 {[%emt 0:06:27]} 19. Bh6 {[%emt 0:01:28]} Nf5 {[%emt 0:08:43]} 20. Nxf5 {[%emt 0:00:29]} Bxf5 {[%emt 0:00:06]} 21. Bb5 {[%emt 0:00:24]} O-O-O {[%emt 0:05:27]} 22. Qf3 {[%emt 0:00:31][%csl LRc6,LRf5]} Bd7 {[%emt 0:03:20]} 23. Bg7 {[%emt 0:00:27] This bishop pair is nice.} Rhg8 {[%emt 0:01:01]} 24. Bxf6 {[%emt 0:00:05] Chess con chili.} Rdf8 {[%emt 0:01:39]} 25. Ba6+ {[%emt 0:00:04]} Kb8 {[%emt 0:00:18]} 26. Qb3+ {[%emt 0:00:16]} Ka8 {[%emt 0:00:22] White must now prevent ...Na5.} 27. Bh4 $2 {[%emt 0:00:05]} (27. Qd5 $18 {and White stays clearly on top.}) 27... h5 $2 {[%emt 0:05:35]} (27... Na5 $16 {was necessary.} 28. Qd3 (28. Qd5+ $2 Bc6 $19) 28... Qc6) 28. Qd5 {[%emt 0:04:19]} Kb8 {[%emt 0:12:39]} 29. Rfe1 {[%emt 0:02:36][%cal Bf1e1,Be1e5,Be5g5][%mdl 32]} Rg4 {[%emt 0:05:00]} 30. Bg3 {[%emt 0:00:05]} Rfg8 {[%emt 0:03:18]} (30... Rg6 $142 31. Bb5 a6 32. Bxa6 h4 33. Bxh4 Be6) 31. Rxe5 {[%emt 0:02:20] White is clearly winning.} Rxg3 {[%emt 0:05:11]} 32. hxg3 {[%emt 0:00:11]} Rd8 {[%emt 0:00:13]} 33. Rg5 {[%emt 0:00:52] Black did not feel at home in the position after the opening.  Weighted Error Value: White=0.15 (very precise) /Black=0.48} 1-0

[Event "15th Paleochora Open 2022"]
[Site "Paleochora"]
[Date "2022.07.17"]
[Round "1.3"]
[White "Simonetto, Alessio"]
[Black "Banikas, Hristos"]
[Result "0-1"]
[ECO "A45"]
[WhiteElo "2064"]
[BlackElo "2598"]
[Annotator "TA"]
[PlyCount "86"]
[EventDate "2022.07.17"]
[EventType "swiss"]
[EventCountry "GRE"]
[SourceTitle "playchess.com"]
[Source "ChessBase"]
[SourceQuality "1"]
[TimeControl "40/5400+30:900+30"]

{[%evp 9,86,8,13,5,45,29,42,44,66,58,70,50,61,59,73,47,75,75,94,66,94,19,47,4,50,-22,-33,-67,-29,-46,-49,-42,-36,-32,-27,-48,-53,-83,-72,-108,-101,-109,-98,-138,-122,-190,-183,-183,-183,-183,-183,-183,-183,-274,-258,-415,-398,-566,-566,-531,-514,-933,-910,-1131,-1156,-1241,-1235,-1101,-1069,-1291,-1270,-1249,-1096,-12834,-29962,-12833,-12832,-2100,-1864]} 1. d4 {[%emt 0:00:03]} Nf6 {[%emt 0:00:07]} 2. Bf4 {[%emt 0:00:11]} g6 {[%emt 0:01:00]} 3. Nc3 {[%emt 0:00:26]} d5 {[%emt 0:00:07]} 4. h4 {[%emt 0:00:18]} h5 {[%emt 0:00:11]} 5. e3 {[%emt 0:00:08]} Bg7 {[%emt 0:00:06]} 6. Nf3 {[%emt 0:00:31] A45: Trompowsky Attack.} Bg4 {[%emt 0:00:29]} 7. Qd2 {[%emt 0:00:17]} c6 {[%emt 0:09:41] [#]} 8. Ng5 $146 {[%emt 0:01:43] White is slightly better.} ({Predecessor:} 8. Ne5 Nbd7 9. Nxg4 Nxg4 10. f3 Ngf6 11. O-O-O Qa5 12. Kb1 Nb6 13. Bd3 O-O-O 14. Be5 {1-0 (42) Mitrabha,G (2498)-Kovalev,V (2634) Chess.com INT 2021}) 8... Nh7 {[%emt 0:11:19]} 9. Nxh7 {[%emt 0:05:41]} Rxh7 {[%emt 0:00:05]} 10. Bd3 {[%emt 0:00:22]} (10. f3 $5 {[%cal Rf3g4]} Be6 11. Be2 $14) 10... Nd7 {[%emt 0:01:27]} 11. f3 {[%emt 0:02:56]} Be6 {[%emt 0:00:05]} 12. O-O-O {[%emt 0:12:26]} b5 {[%emt 0:00:10]} 13. Ne2 {[%emt 0:02:47]} Qb6 {[%emt 0:00:50]} 14. Kb1 {[%emt 0:18:22]} c5 {[%emt 0:03:28]} 15. dxc5 {[%emt 0:00:24]} (15. c3 $16) 15... Nxc5 $11 {[%emt 0:00:05]} 16. Qb4 {[%emt 0:00:39]} (16. Bg5 $5 {[%cal Re2f4]}) 16... a6 {[%emt 0:21:45]} (16... Nxd3 $11 17. cxd3 a5) 17. Nc3 {[%emt 0:04:22]} (17. Bg5 $1 $14) 17... Rc8 {[%emt 0:13:55]} 18. Bg5 {[%emt 0:19:11][%cal Oc3a4]} Qb7 {[%emt 0:00:29]} 19. Ne2 {[%emt 0:05:24]} Nxd3 {[%emt 0:00:36]} 20. cxd3 {[%emt 0:01:36]} f6 {[%emt 0:04:32]} (20... Qc7 21. Rc1 Qd6 22. Qa5 $14) 21. Bf4 {[%emt 0:00:04]} (21. Nd4 $2 Bd7 22. Bf4 e5 $19) 21... Kf7 {[%emt 0:00:10]} (21... Qc6 22. Nd4 Qb6 23. Rc1 $16) 22. Rc1 {[%emt 0:03:26] And now Rxc8 would win.} Rhh8 {[%emt 0:00:07]} 23. Qa5 {[%emt 0:00:14]} Bf5 $36 {[%emt 0:00:17][%mdl 2048] Black is really pushing. White is on the road to losing.} 24. Qd2 {[%emt 0:09:19]} ({Much weaker is} 24. e4 dxe4 25. dxe4 {[#]} (25. Rxc8 $2 Rxc8 26. dxe4 Bxe4+ 27. Ka1 Rc2 $19) 25... Bxe4+ $1 {[%mdl 512]} 26. Ka1 Bd3 $17) 24... e5 {[%emt 0:00:45]} 25. Bh2 {[%emt 0:03:00]} b4 {[%emt 0:00:06]} 26. Ka1 {[%emt 0:02:07]} Qb5 {[%emt 0:04:27] Black is more active.} 27. d4 {[%emt 0:00:53]} (27. Rxc8 $17 Rxc8 28. e4) 27... Bd3 $19 {[%emt 0:00:31]} 28. Rxc8 {[%emt 0:00:13]} Rxc8 {[%emt 0:00:17]} 29. Rc1 {[%emt 0:00:03] Against Rc2} Rxc1+ {[%emt 0:02:54]} 30. Nxc1 {[%emt 0:00:04]} Bf5 {[%emt 0:00:16]} 31. b3 {[%emt 0:05:21]} (31. Bg3 {is a better defense.}) 31... Qf1 {[%emt 0:02:40]} 32. Kb2 $2 {[%emt 0:00:56]} (32. dxe5 {was called for.} Ke6 33. f4 (33. e4 $2 dxe4 34. g4 hxg4 $19)) 32... exd4 {[%emt 0:00:11]} 33. exd4 {[%emt 0:00:11] [#]} (33. Bf4 {is the only way for White.} g5 34. Bd6) 33... Bh6 $1 {[%emt 0:01:41][%mdl 512]} 34. f4 {[%emt 0:00:03]} Be4 {[%emt 0:00:37]} 35. g3 {[%emt 0:00:08]} (35. Qe2 $142 Qh1 36. Bg3) 35... Bf8 {[%emt 0:01:21]} 36. Qe2 {[%emt 0:00:38]} Qh1 {[%emt 0:00:25]} 37. g4 {[%emt 0:03:15]} hxg4 {[%emt 0:00:24]} 38. Bg3 {[%emt 0:00:04]} Qf3 {[%emt 0:00:23][%csl Gb4][%cal Rf3c3]} 39. Be1 {[%emt 0:00:26] Inhibits Qc3+.} Qxf4 {[%emt 0:01:26] ( -> ...Bh6)} 40. Bd2 {[%emt 0:00:00]} Qf3 {[%emt 0:00:00][%cal Of8h6] Hoping for ...Bh6!} 41. Qxa6 {[%emt 0:00:49]} Qd1 {[%emt 0:02:27]} 42. Qb7+ {[%emt 0:01:25]} Kg8 {[%emt 0:00:10]} 43. Bxb4 {[%emt 0:00:33]} Bxb4 {[%emt 0:01:30] Weighted Error Value: White=0.73/Black=0.13 (very precise)} 0-1

[Event "15th Paleochora Open 2022"]
[Site "Paleochora"]
[Date "2022.07.17"]
[Round "1.4"]
[White "Tsarsitalidis, Konstantinos"]
[Black "Ali Marandi, Cemil Can"]
[Result "1/2-1/2"]
[ECO "B32"]
[WhiteElo "2059"]
[BlackElo "2561"]
[Annotator "TA"]
[PlyCount "127"]
[EventDate "2022.07.17"]
[EventType "swiss"]
[EventCountry "GRE"]
[SourceTitle "playchess.com"]
[Source "ChessBase"]
[SourceQuality "1"]
[TimeControl "40/5400+30:900+30"]

{[%evp 15,127,33,46,0,0,0,0,0,0,0,0,6,7,0,0,0,0,0,5,0,11,8,60,69,65,12,15,17,54,46,36,44,47,5,89,87,102,58,94,93,97,78,97,61,111,93,136,130,137,133,147,59,56,29,43,0,2,0,20,0,6,24,148,131,123,-8,0,0,0,0,0,0,0,0,0,0,0,0,0,0,0,0,0,0,0,0,0,0,0,0,0,0,0,0,0,0,0,0,0,0,0,0,0,0,0,0,0,0,0,0,0,0,0,0]} 1. e4 {[%emt 0:00:03]} c5 {[%emt 0:00:08]} 2. Nf3 {[%emt 0:00:14][%cal Bg1f3,Bf3d4,Bd4b5][%mdl 32]} Nc6 {[%emt 0:00:08]} 3. d4 {[%emt 0:00:09]} cxd4 {[%emt 0:00:03]} 4. Nxd4 {[%emt 0:00:06]} e5 {[%emt 0:00:04]} 5. Nb5 {[%emt 0:00:06]} d6 {[%emt 0:00:06]} 6. N1c3 {[%emt 0:00:18]} a6 {[%emt 0:00:19]} 7. Na3 {[%emt 0:00:05]} b5 {[%emt 0:00:15]} 8. Nd5 {[%emt 0:00:06]} Nge7 {[%emt 0:00:45]} 9. Ne3 {[%emt 0:00:06] B32: Sicilian: Löwenthal and Kalashnikov Variations.} (9. c4 $14) 9... g6 $11 {[%emt 0:01:28]} 10. g3 {[%emt 0:00:16]} Bg7 {[%emt 0:00:24]} 11. Bg2 {[%emt 0:00:04]} O-O {[%emt 0:02:04]} 12. O-O {[%emt 0:00:05]} Be6 {[%emt 0:01:10]} 13. c3 {[%emt 0:03:43]} f5 {[%emt 0:02:26]} 14. exf5 {[%emt 0:08:34]} gxf5 {[%emt 0:00:17]} 15. Nd5 {[%emt 0:00:25]} Nxd5 {[%emt 0:04:02]} 16. Bxd5 {[%emt 0:00:55] [#]} Qd7 $146 {[%emt 0:00:07]} ({Predecessor:} 16... Qe8 17. Nc2 f4 18. a4 b4 19. Nxb4 Nxb4 20. cxb4 Rb8 21. Qb3 Bxd5 22. Qxd5+ Kh8 {1-0 (35) Dobos,J (2360)-Schneider,A (2425) Eger 1990}) 17. f4 {[%emt 0:16:32]} Rad8 {[%emt 0:07:41]} 18. Nc2 {[%emt 0:04:56]} Ne7 {[%emt 0:03:10]} ({Black should play} 18... a5 $11) 19. Bxe6+ $14 {[%emt 0:04:29]} Qxe6 {[%emt 0:00:02]} 20. Qe2 {[%emt 0:10:31]} (20. a4 $14) 20... Nd5 $11 {[%emt 0:18:00]} 21. a4 {[%emt 0:04:48]} Rb8 {[%emt 0:00:52]} 22. axb5 {[%emt 0:02:04]} axb5 {[%emt 0:00:44]} 23. Ra7 {[%emt 0:04:55]} Rfe8 {[%emt 0:03:33]} 24. Rd1 {[%emt 0:06:40]} Nf6 {[%emt 0:03:29]} (24... b4 $1 $11) 25. Qd3 $16 {[%emt 0:02:35]} Bf8 {[%emt 0:01:57]} 26. Ra6 {[%emt 0:03:07]} Qc8 {[%emt 0:05:12]} 27. Nb4 {[%emt 0:01:29]} Ne4 {[%emt 0:04:27]} 28. Be3 {[%emt 0:03:17]} Kh8 {[%emt 0:04:50]} 29. Qd5 {[%emt 0:03:37]} Bg7 {[%emt 0:08:58]} (29... Qc4 $14) 30. Ra7 {[%emt 0:02:50]} Qe6 {[%emt 0:04:09]} 31. Qxe6 {[%emt 0:01:29]} Rxe6 {[%emt 0:00:05]} 32. Rf7 {[%emt 0:02:38]} Nf6 {[%emt 0:02:43] [#]} 33. Nc6 {[%emt 0:03:06] 0x0.002028549971dp-1022s more active pieces.} (33. Na6 $1 $16 {[%cal Ra6b8]} Rf8 34. Rxf8+ Bxf8 35. Nc7) 33... Rbe8 $14 {[%emt 0:00:53]} 34. fxe5 {[%emt 0:01:00]} dxe5 {[%emt 0:00:09]} 35. Nd8 {[%emt 0:00:33]} Ra6 {[%emt 0:05:59]} 36. Rb7 {[%emt 0:00:18] Strongly threatening Nf7+.} f4 {[%emt 0:02:23]} 37. Bb6 {[%emt 0:05:22]} Bf8 {[%emt 0:03:19][%cal Oa6b6]} 38. Kg2 {[%emt 0:02:10] aiming for gxf4.} Ra2 {[%emt 0:00:27]} (38... Ng4 $11 {remains equal.} 39. Re1 Rxb6 40. Nf7+ Kg7 41. Rxb6 e4 42. gxf4 Kxf7) 39. Nf7+ {[%emt 0:03:16]} Kg8 {[%emt 0:00:19] [#]} 40. Re1 {[%emt 0:00:00]} (40. gxf4 $1 $16 {Threatens to win with Rg1.} Rxb2+ 41. Kh3) 40... Rxb2+ {[%emt 0:00:00] The position is equal.} 41. Kh3 $1 {[%emt 0:02:00]} f3 {[%emt 0:10:19] White must now prevent ...e4.} 42. Rxe5 {[%emt 0:02:59] White threatens Rg5+ and mate. Chess con chili.} Rxh2+ {[%emt 0:00:07]} 43. Kxh2 {[%emt 0:00:03]} Ng4+ {[%emt 0:00:06]} 44. Kg1 {[%emt 0:00:04] White wants to mate with Nh6+.} Nxe5 {[%emt 0:00:15]} 45. Nxe5 {[%emt 0:00:04]} Rxe5 $11 {[%emt 0:00:05][%mdl 4096] Endgame KRB-KRB} 46. Kf2 {[%emt 0:00:47]} Bc5+ {[%emt 0:02:00]} 47. Kxf3 {[%emt 0:02:21]} Re3+ {[%emt 0:00:53]} 48. Kf4 {[%emt 0:03:00]} Rxc3 {[%emt 0:00:10]} 49. Bxc5 {[%emt 0:00:04]} Rxc5 {[%emt 0:00:06] KR-KR} 50. Kg4 {[%emt 0:01:06]} h5+ {[%emt 0:00:25]} 51. Kf4 {[%emt 0:03:04]} Kf8 {[%emt 0:00:32]} 52. Rh7 {[%emt 0:04:30]} Ke8 {[%emt 0:00:41]} 53. Ke4 {[%emt 0:01:04]} Kd8 {[%emt 0:00:09]} 54. Rg7 {[%emt 0:01:47]} Kc8 {[%emt 0:01:40]} 55. Kd4 {[%emt 0:01:10]} Rc4+ {[%emt 0:00:42]} 56. Kd5 {[%emt 0:00:45]} Rc1 {[%emt 0:00:15]} 57. Kd4 {[%emt 0:00:29]} b4 {[%emt 0:05:41] And now ...b3 would win.} 58. Rg5 {[%emt 0:00:51]} Kc7 {[%emt 0:00:33]} (58... b3 $5 59. Rb5 Rb1 $11) 59. Rb5 {[%emt 0:00:31]} Rg1 {[%emt 0:00:22]} 60. Kc4 {[%emt 0:00:38]} Rxg3 {[%emt 0:00:21]} 61. Rxh5 {[%emt 0:00:16]} b3 {[%emt 0:00:07]} 62. Rb5 {[%emt 0:00:06]} Kc6 {[%emt 0:00:35] Hoping for ...Rg4+.} 63. Rxb3 {[%emt 0:00:07]} Rxb3 {[%emt 0:00:04]} 64. Kxb3 {[%emt 0:00:03] Weighted Error Value: White=0.12 (very precise) /Black=0.15 (very precise)} 1/2-1/2

[Event "15th Paleochora Open 2022"]
[Site "Paleochora"]
[Date "2022.07.17"]
[Round "1.5"]
[White "Basso, Pier Luigi"]
[Black "Musil, Miroslav"]
[Result "1-0"]
[ECO "D46"]
[WhiteElo "2561"]
[BlackElo "2049"]
[Annotator "TA"]
[PlyCount "39"]
[EventDate "2022.07.17"]
[EventType "swiss"]
[EventCountry "GRE"]
[SourceTitle "playchess.com"]
[Source "ChessBase"]
[SourceQuality "1"]
[TimeControl "40/5400+30:900+30"]

{[%evp 20,39,5,0,11,10,16,11,7,0,27,0,68,58,100,80,249,227,258,262,1264,1282]} 1. d4 {[%emt 0:00:08]} d5 {[%emt 0:00:07]} 2. c4 {[%emt 0:00:06]} c6 {[%emt 0:00:10]} 3. Nf3 {[%emt 0:00:07]} Nf6 {[%emt 0:00:40]} 4. Nc3 {[%emt 0:00:30]} e6 {[%emt 0:00:48]} 5. Bg5 {[%emt 0:00:00]} Be7 {[%emt 0:00:27]} 6. e3 {[%emt 0:00:00]} Nbd7 {[%emt 0:01:26]} 7. Bd3 {[%emt 0:00:32]} b6 {[%emt 0:00:43]} 8. O-O {[%emt 0:02:33]} Bb7 {[%emt 0:02:33]} 9. Qe2 {[%emt 0:00:59]} O-O {[%emt 0:01:59]} 10. e4 $5 {[%emt 0:07:37][%mdl 4] An interesting side line.} dxe4 {[%emt 0:05:26]} 11. Nxe4 {[%emt 0:01:53]} Nxe4 {[%emt 0:05:28] D46: Semi-Slav: 5 e3 Nbd7 6 Bd3, Black avoids the Meran.} 12. Qxe4 {[%emt 0:02:39][%csl Gd3][%cal Re4h7] [#]} g6 {[%emt 0:00:00]} 13. Qh4 {[%emt 0:04:48]} Re8 {[%emt 0:00:00] The position is equal.} 14. Rfe1 {[%emt 0:00:56]} Nf8 {[%emt 0:00:00]} 15. Rad1 {[%emt 0:03:15][%cal Oc4c5]} Bxg5 {[%emt 0:03:13]} ({Better is} 15... c5 $11) 16. Nxg5 $14 {[%emt 0:00:10][%cal Bf3g5,Bg5e4,Be4d6,Bd6f5][%mdl 32]} Kg7 {[%emt 0:05:55] [#]} 17. Qg3 $146 {[%emt 0:00:25] 0x0.00198858a92edp-1022s more active pieces. The black rooks are badly placed.} ({Predecessor:} 17. Qf4 Qf6 18. Qxf6+ Kxf6 19. Ne4+ Ke7 20. c5 Red8 21. Nd6 Rab8 22. b4 {1-0 (42) Studeny,S (2210)-Rausch,S (2295) Germany 1996}) 17... Qd7 $2 {[%emt 0:06:14]} (17... Qb8 $16 {might work better.}) 18. Ne4 $18 {[%emt 0:02:37] Black must now prevent Qe5+.} Qe7 {[%emt 0:06:21]} 19. Nd6 {[%emt 0:00:17]} Red8 $2 {[%emt 0:00:34] [#]} (19... Kg8 20. Nxe8 Rxe8) 20. Nf5+ $1 {[%emt 0:00:34][%mdl 512] Black got outplayed after the opening.  Weighted Error Value: White=0.10 (very precise) /Black=0.55} 1-0

[Event "15th Paleochora Open 2022"]
[Site "Paleochora"]
[Date "2022.07.17"]
[Round "1.6"]
[White "Petrakis, Stylianos"]
[Black "Meshkovs, Nikita"]
[Result "0-1"]
[ECO "B31"]
[WhiteElo "2049"]
[BlackElo "2535"]
[Annotator "TA"]
[PlyCount "72"]
[EventDate "2022.07.17"]
[EventType "swiss"]
[EventCountry "GRE"]
[SourceTitle "playchess.com"]
[Source "ChessBase"]
[SourceQuality "1"]
[TimeControl "40/5400+30:900+30"]

{[%evp 11,72,15,19,11,10,-4,-6,-31,-25,-16,-20,-48,-41,-40,-50,-66,-70,-72,-13,-40,-31,-69,10,8,11,8,23,-54,-49,-66,0,0,8,0,7,0,32,9,8,13,8,8,6,0,13,4,10,-4,0,-13,-23,-180,-187,-490,-490,-672,-656,-728,-720,-889,-880,-827,-774]} 1. e4 {[%emt 0:00:03]} c5 {[%emt 0:00:04]} 2. Nf3 {[%emt 0:00:06]} Nc6 {[%emt 0:00:09]} 3. Bb5 {[%emt 0:00:12]} g6 {[%emt 0:00:05]} 4. O-O {[%emt 0:00:38]} Bg7 {[%emt 0:00:05]} 5. Re1 {[%emt 0:00:46]} e5 {[%emt 0:00:20]} 6. d3 {[%emt 0:09:42]} Nge7 {[%emt 0:00:21]} 7. Be3 {[%emt 0:11:06] B31: Sicilian: 2...Nc6 3 Bb5 g6.} d6 {[%emt 0:00:11]} 8. h3 {[%emt 0:00:22] [#]} a6 $146 {[%emt 0:03:15]} ({Predecessor:} 8... O-O 9. c3 a6 10. Ba4 Qa5 11. Nbd2 Bd7 12. b4 cxb4 13. Nc4 Qc7 14. Bb6 Qb8 15. cxb4 {0-1 (38) Klimpel,T (2128)-Vuckovic,A (2328) Ditzingen 2005}) 9. Ba4 {[%emt 0:02:29] The position is equal.} b5 {[%emt 0:05:39]} 10. Bb3 {[%emt 0:00:05]} Na5 {[%emt 0:00:07]} 11. Nc3 {[%emt 0:14:49]} Nxb3 {[%emt 0:05:36]} 12. axb3 {[%emt 0:00:06]} Bb7 {[%emt 0:00:10]} 13. Qd2 {[%emt 0:03:25]} h6 {[%emt 0:02:57]} 14. Nh2 {[%emt 0:04:39]} g5 {[%emt 0:01:33] Prevents f4.} (14... f5 $17 {Hoping for ...f4.} 15. f3 f4) 15. Qd1 {[%emt 0:16:44]} O-O {[%emt 0:05:53]} 16. h4 {[%emt 0:09:49]} f6 {[%emt 0:02:57]} ({Much less strong is} 16... gxh4 17. Qh5 $14) ({Much weaker is} 16... b4 17. hxg5 bxc3 18. gxh6 $14) (16... f5 $1 $15) 17. Qh5 {[%emt 0:16:38]} Qe8 {[%emt 0:00:25]} 18. Qxe8 {[%emt 0:00:52]} Raxe8 {[%emt 0:00:02]} 19. g4 {[%emt 0:00:54]} (19. hxg5 $1 $11 hxg5 20. Nf1) 19... gxh4 $15 {[%emt 0:02:46][%cal Oh6h5]} 20. Nf3 {[%emt 0:00:28]} Ng6 {[%emt 0:00:06]} ({Better is} 20... h5 $15 21. gxh5 b4) 21. Kg2 $11 {[%emt 0:00:44]} b4 {[%emt 0:01:27]} 22. Na4 {[%emt 0:02:12]} Kf7 {[%emt 0:17:49]} 23. Rh1 {[%emt 0:00:47]} Rg8 {[%emt 0:00:01]} 24. Nxh4 {[%emt 0:01:47]} Nxh4+ {[%emt 0:00:02]} 25. Rxh4 {[%emt 0:00:05] Strongly threatening f3.} f5 $1 {[%emt 0:00:01]} 26. f3 {[%emt 0:00:29][%cal Bf2f3,Bf3g4][%mdl 32]} fxg4 {[%emt 0:10:35]} 27. fxg4 {[%emt 0:01:21]} Re6 {[%emt 0:00:01]} 28. Rf1+ {[%emt 0:01:17]} Ke8 {[%emt 0:00:11]} 29. Rh5 {[%emt 0:01:06]} Bf8 {[%emt 0:00:49][%cal Bg7f8,Bf8e7,Be7h4,Bh4d8,Bd8b6][%mdl 32]} 30. Kh3 {[%emt 0:00:55]} Reg6 {[%emt 0:00:34] [#] White must now prevent ...Bc8.} 31. Rg1 $2 {[%emt 0:00:47] This move loses the game for White.} (31. g5 $1 $11) 31... Bc8 $19 {[%emt 0:00:24]} 32. Rh4 {[%emt 0:00:33]} (32. Rf5 {was the crucial defense.}) 32... Be7 {[%emt 0:00:01] Black is clearly winning.} 33. Nb6 {[%emt 0:00:30]} Bxh4 {[%emt 0:01:21]} 34. Nxc8 {[%emt 0:00:06]} Bd8 {[%emt 0:00:02]} 35. Bf2 {[%emt 0:00:55]} Kd7 {[%emt 0:00:07]} 36. Na7 {[%emt 0:00:03]} Bb6 {[%emt 0:00:12] Weighted Error Value: White=0.50/Black=0.13 (very precise)} 0-1